Cogmind - Beta 11.1 @@@ ROGUE MODE // 2022.04.25 @ 16:44:53 Player: slowdive Result: Destroyed by G-34 Mercenary with Small Laser Performance ------------- Evolutions (1) 500 Regions Visited (3) 600 Robots Destroyed (50) 250 Value Destroyed (1334) 1334 Prototype IDs (5) 100 Alien Tech Used (0) 0 Bonus (167) 167 TOTAL SCORE: 2951 Bonus ------- High Alert Combat Kills 167 Cogmind --------- Core Integrity 0/400 Matter 289/300 Energy 250/250 System Corruption 5% Temperature Cool (6) Movement Walking (190) Ox1 Location -9/Storage Parts ------- > --- POWER (1) -------- Ion Engine > --- PROPULSION (2) --- Aluminum Leg Aluminum Leg > --- UTILITY (4) ------ Small Storage Unit Medium Storage Unit Light Armor Plating Drone Bay (2/2) > --- WEAPON (2) ------- Improved Assault Rifle Rocket Launcher > --- INVENTORY (10) --- Heavy Ion Engine Aluminum Leg Flight Unit Flight Unit Flight Unit Drone Bay (2/2) Improved Assault Rifle Improved Assault Rifle Peak State ------------ > --- POWER ------------ Ion Engine > --- PROPULSION ------- Aluminum Leg Aluminum Leg > --- UTILITY ---------- Medium Storage Unit Weight Redist. System Light Armor Plating Drone Bay > --- WEAPON ----------- Improved Assault Rifle Improved Assault Rifle > --- INVENTORY -------- Heavy Ion Engine Aluminum Leg Flight Unit Flight Unit Flight Unit Small Storage Unit Drone Bay Improved Assault Rifle Improved Assault Rifle Rocket Launcher [Rating: 20] Favorites ----------- Power Ion Engine Engine Ion Engine Propulsion Light Treads Treads Light Treads Leg Aluminum Leg Wheel Compact Wheel Utility Small Storage Unit Device Improved Heat Sink Storage Small Storage Unit Protection Power Shielding Weapon Small Laser Energy Gun Small Laser Ballistic Gun Improved Assault Rifle Launcher Grenade Launcher Special Weapon Mining Laser Build | -11 -10 -9 -9 ------- Run | Scr Mat Mat Sto Slots Evolved 2 | . . 2 . Power . | . . . . Propulsion . | . . . . Utility 2 | . . 2 . Weapon . | . . . . Parts Attached 68 | 6 23 35 4 Power 10 | . 3 7 . Engine 10 | . 3 7 . Core . | . . . . Reactor . | . . . . Propulsion 19 | 6 6 7 . Treads 10 | . 6 4 . Leg 5 | 2 . 3 . Wheel 4 | 4 . . . Hover . | . . . . Flight . | . . . . Utility 12 | . 2 8 2 Device 5 | . . 4 1 Storage 4 | . 1 2 1 Processor . | . . . . Hackware . | . . . . Protection 3 | . 1 2 . Artifact . | . . . . Weapon 27 | . 12 13 2 Energy Gun 8 | . 2 6 . Energy Cannon . | . . . . Ballistic Gun 10 | . 4 5 1 Ballistic Cannon . | . . . . Launcher 7 | . 5 1 1 Special Weapon 2 | . 1 1 . Impact Weapon . | . . . . Slashing Weapon . | . . . . Piercing Weapon . | . . . . Special Melee Weapon . | . . . . Unidentified Prototypes 3 | . . 3 . Parts Lost 13 | . . 12 1 Power 3 | . . 3 . Propulsion 2 | . . 2 . Utility 2 | . . 1 1 Weapon 6 | . . 6 . Highest Loss Streak 5 | . . 5 1 To Critical Strikes . | . . . . Average Slot Usage (%) 97 | . 98 96 99 Engine 12 | . 14 10 11 Treads 18 | . 25 15 . Leg 4 | . . 6 22 Device 8 | . . 15 17 Storage 13 | . 15 11 14 Protection 13 | . 12 14 11 Energy Gun 13 | . 18 11 . Ballistic Gun 8 | . 4 9 21 Special Weapon 1 | . 3 . . Naked Turns . | . . . . Heaviest Build 36 | 11 18 27 36 Greatest Support 40 | 26 40 40 20 Greatest Overweight (x) 4 | . 4 1 1 Average Overweight (x) . | . . . 1 Largest Inventory Capacity 10 | 8 8 10 10 Average Capacity 8 | 8 8 8 10 Most Carried 10 | 6 8 10 10 Average Carried 8 | 6 7 7 9 Final Capacity 10 | 8 8 10 10 Final Carried 10 | 6 8 10 8 Class Distribution -------------------- 59% | Mutant 40% | Scavenger-Mutant Dominant Class ---------------- Mutant | -10/Materials Scavenger-Mutant | -9/Materials Scavenger-Mutant | -9/Storage Resources | -11 -10 -9 -9 ----------- Run | Scr Mat Mat Sto Matter Collected 1221 | 200 282 636 103 Remotely . | . . . . Salvage Created 1569 | . 455 899 215 Parts 97 | . 31 57 9 Haulers Intercepted 4 | . 1 2 1 Recyclers Shooed 2 | . 1 . 1 Parts Field Recycled . | . . . . Retrieved Matter . | . . . . Parts Self-Destructed . | . . . . Prevented . | . . . . Kills | -11 -10 -9 -9 ------- Run | Scr Mat Mat Sto Combat Hostiles Destroyed 37 | . 11 23 3 Melee 1 | . . 1 . Guns 23 | . 2 18 3 Cannons 1 | . . 1 . AOE 12 | . 9 3 . Classes Destroyed 8 | . 6 1 1 Worker 1 | . 1 . . Builder 6 | . 3 3 . Hauler 4 | . 1 2 1 Recycler 2 | . 1 . 1 Swarmer 7 | . 3 4 . Grunt 27 | . 8 17 2 Brawler 1 | . . . 1 Sentry 2 | . . 2 . Best Kill Streak 8 | . 6 8 3 Combat Bots Only 5 | . 3 5 2 Max Kills in Single Turn 3 | . 3 2 2 Gunslinging . | . . . . Exploded 2 | . 2 1 . Melee 1 | . . 1 . Uniques/NPCs Destroyed . | . . . . Combat | -11 -10 -9 -9 -------- Run | Scr Mat Mat Sto Damage Taken 2263 | . 365 1780 118 Core 484 | . 76 386 22 Absorbed by Shields . | . . . . Redirected to Shielding 83 | . 11 72 . Core Remaining (%) 84 | 100 69 . . Volleys Fired 146 | . 48 89 9 Largest 2 | . 2 2 2 Hottest 120 | . 100 120 46 Shots Fired 232 | . 56 159 17 Gun 199 | . 35 148 16 Cannon . | . . . . Launcher 22 | . 12 9 1 Special 11 | . 9 2 . Kinetic 91 | . 27 48 16 Thermal 104 | . 9 95 . Explosive 22 | . 12 9 1 Electromagnetic 15 | . 8 7 . Robot Hit Streak 13 | . 5 13 5 Robot Miss Streak 3 | . 2 3 1 Penetration Max . | . . . . Secondary Targets 4 | . . 4 . Max Gunslinging Chain 1 | . . 1 . Shots Hit Robots 149 | . 30 108 11 Core Hits 78 | . 23 47 8 Critical Kills 1 | . 1 . . Critical Parts Destroyed 1 | . . . 1 Critical Strikes 2 | . 1 . 1 Destroy 2 | . 1 . 1 Melee Attacks . | . . . . Impact . | . . . . Slashing . | . . . . Piercing . | . . . . Sneak Attacks . | . . . . Combat Hostiles . | . . . . Follow-up Attacks . | . . . . Damage Inflicted 3514 | . 1400 1788 326 Guns 1732 | . 255 1301 176 Cannons . | . . . . Explosions 1730 | . 1140 440 150 Melee . | . . . . Ramming 28 | . 5 23 . Kinetic 820 | . 175 469 176 Thermal 1341 | . 462 879 . Explosive 1179 | . 678 351 150 Electromagnetic 146 | . 80 66 . Impact . | . . . . Slashing . | . . . . Piercing . | . . . . Highest Corruption 5 | . . . 5 Average Corruption 5 | . . . 5 Corruption Purged . | . . . . Corruption Blocked . | . . . . Effects 3 | . . . 3 Message Errors 1 | . . . 1 Energy Discharges 1 | . . . 1 Parts Rejected 1 | . . . 1 Overload Shots . | . . . . Overflow Damage 198 | . 160 38 . Projectiles . | . . . . Explosions 198 | . 160 38 . Melee . | . . . . Knockbacks . | . . . . Impact . | . . . . Kinetic . | . . . . Secondary . | . . . . Self-Inflicted Damage 239 | . 55 162 22 Shots 8 | . 3 4 1 Rammed 11 | . 1 10 . Targets Rammed 12 | . 1 11 . Kicked . | . . . . Crushed 1 | . . 1 . Highest Temperature 67 | . 47 67 1 Average Temperature 14 | . 12 18 1 Received Heat Transfer 945 | . 156 747 42 Siege Activations . | . . . . Robots Corrupted . | . . . . Combat Hostiles . | . . . . Parts Fried . | . . . . Impact Corruptions . | . . . . Robots Melted . | . . . . Combat Hostiles . | . . . . Parts Melted 6 | . . 6 . Heat Transferred 2150 | . 300 1850 . Parts Sabotaged . | . . . . Parts Stolen . | . . . . Parts Stripped . | . . . . Power Chain Reactions 2 | . 1 1 . Missiles Intercepted . | . . . . Alert | -11 -10 -9 -9 ------- Run | Scr Mat Mat Sto Peak Influence 552 | . 491 552 331 Initial 196 | . . 157 196 Average 344 | . 303 402 221 Maximum Alert Level 2 | . 2 2 1 Low Security (%) 13 | 100 13 14 2 Level 1 53 | . 73 27 97 Level 2 33 | . 12 57 . Level 3 . | . . . . Level 4 . | . . . . Level 5 . | . . . . High Security . | . . . . Max Security . | . . . . Squads Dispatched 7 | . 2 3 2 Investigation 4 | . 1 3 . Extermination . | . . . . Reinforcement 3 | . 1 . 2 Assault . | . . . . Garrison . | . . . . Intercept . | . . . . Searches Triggered . | . . . . Construction Impeded . | . . . . Haulers Reinforced . | . . . . Active Scanning Responses . | . . . . Cargo Convoy Interrupts . | . . . . Stealth | -11 -10 -9 -9 --------- Run | Scr Mat Mat Sto Distress Signals 4 | . 3 1 . Communications Jammed . | . . . . Distress Signals . | . . . . Times Spotted 63 | . 28 29 6 Peak Tracking Total 5 | . 5 5 3 Tactical Retreats 2 | . 1 1 . Traps | -11 -10 -9 -9 ------- Run | Scr Mat Mat Sto Traps Triggered 2 | . 2 . . Indirectly . | . . . . Trap Hack Attempts . | . . . . Triggered . | . . . . Disarmed . | . . . . Reprogrammed . | . . . . Reused . | . . . . Traps Extracted . | . . . . Installed . | . . . . Triggered . | . . . . Machines | -11 -10 -9 -9 ---------- Run | Scr Mat Mat Sto Machines Disabled 13 | . 10 3 . Max in Single Turn 4 | . 4 1 . Machines Sabotaged . | . . . . Garrisons Compromised . | . . . . Overloaded Fab Kills . | . . . . Hacking | -11 -10 -9 -9 --------- Run | Scr Mat Mat Sto Machines Accessed 13 | . 8 3 2 Terminals 9 | . 6 1 2 Fabricators . | . . . . Repair Stations . | . . . . Recycling Units 2 | . 2 . . Scanalyzers 2 | . . 2 . Garrison Access . | . . . . Total Hacks 31 | . 16 10 5 Successful 18 | . 8 7 3 Failed 13 | . 8 3 2 Catastrophic 2 | . 2 . . Database Lockouts . | . . . . Manual 15 | . 11 3 1 Terminals 21 | . 12 4 5 Fabricators . | . . . . Repair Stations . | . . . . Recycling Units 4 | . 4 . . Scanalyzers 6 | . . 6 . Garrison Access . | . . . . Terminal Hacks 11 | . 6 2 3 Record 1 | . . 1 . Part Schematic 1 | . . . 1 Prototype ID Bank 1 | . 1 . . Open Door 1 | . . . 1 Branch Access Points 1 | . 1 . . Emergency Access Points 1 | . 1 . . Recall Investigation 1 | . 1 . . Registered Components 2 | . 1 1 . Zone Layout 2 | . 1 . 1 Fabricator Hacks . | . . . . Repair Station Hacks . | . . . . Recycling Unit Hacks . | . . . . Scanalyzer 5 | . . 5 . Insert Component 3 | . . 3 . Analyze 2 | . . 2 . Garrison Access Hacks . | . . . . Unauthorized Hacks 2 | . 2 . . Terminals . | . . . . Fabricators . | . . . . Repair Stations . | . . . . Recycling Units 2 | . 2 . . Monitor 1 | . 1 . . Mask 1 | . 1 . . Scanalyzers . | . . . . Garrison Access . | . . . . Data Cores Recovered . | . . . . Used . | . . . . Hacking Detections 11 | . 6 3 2 Full Trace Events 4 | . 1 3 . Feedback Events . | . . . . Feedback Blocked . | . . . . Robot Schematics Acquired . | . . . . Robots Built . | . . . . Authchips . | . . . . Time . | . . . . Total Robot Build Rating . | . . . . Part Schematics Acquired 3 | . . 2 1 Parts Built . | . . . . Authchips . | . . . . Time . | . . . . Total Part Build Rating . | . . . . Parts Repaired . | . . . . Time . | . . . . Parts Recycled . | . . . . Recycled Matter . | . . . . Retrieved Matter . | . . . . Retrieved Components . | . . . . Parts Scanalyzed 2 | . . 2 . Part Schematics Acquired 2 | . . 2 . Parts Damaged . | . . . . Bothacking | -11 -10 -9 -9 ------------ Run | Scr Mat Mat Sto Used RIF Installer . | . . . . Robots Hacked . | . . . . Non-combat . | . . . . Combat . | . . . . Robot Hacks Applied . | . . . . Relay Couplers Released . | . . . . Fabnet Peak Effective % . | . . . . Robots Rewired . | . . . . Allies Hacked . | . . . . Hacks Repelled . | . . . . Allies | -11 -10 -9 -9 -------- Run | Scr Mat Mat Sto Total Allies . | . . . . Largest Group . | . . . . Highest-Rated Group . | . . . . Highest-Rated Ally . | . . . . Total Orders 2 | . . . 2 ROAM 1 | . . . 1 EXPLORE 1 | . . . 1 Ally Attacks . | . . . . Total Damage . | . . . . Kills . | . . . . Allies Corrupted . | . . . . Allies Melted . | . . . . Intel | -11 -10 -9 -9 ------- Run | Scr Mat Mat Sto Robot Analysis Total . | . . . . Derelict Logs Recovered . | . . . . Drone Launches 2 | . . . 2 Drone Recoveries 2 | . . . 2 Exploration | -11 -10 -9 -9 ------------- Run | Scr Mat Mat Sto Turns Passed 3190 | 9 1427 1532 222 Spaces Moved 1496 | 1 797 631 67 Core 2 | . 2 . . Treads 1135 | . 698 437 . Legs 261 | . . 194 67 Wheels 98 | 1 97 . . Hover . | . . . . Flight . | . . . . Fastest Speed 90 | 90 90 120 190 Average Speed 157 | 90 151 162 190 Slowest Speed 250 | 90 250 190 190 Overloaded Moves . | . . . . Propulsion Burnouts . | . . . . Robots Hopped . | . . . . Cave-ins Triggered . | . . . . Exploration Rate (%) 36 | 1 96 29 20 Regions Visited 3 Branch Regions 1 Pre-discovered Areas . | . . . . Known Exits Taken . | . . . . Unknown Exits Taken 3 | 1 1 1 . Scrap Searched . | . . . . Spaces Dug 18 | . 9 9 . Terrain Destroyed 164 | . 74 79 11 Melee . | . . . . Projectile 10 | . 9 1 . AOE 154 | . 65 78 11 Terrain Rammed . | . . . . Walls Destroyed . | . . . . Machines Disabled . | . . . . Actions | -11 -10 -9 -9 --------- Run | Scr Mat Mat Sto Total 2066 | 6 943 973 144 Wait 270 | . 42 167 61 Move 1493 | . 796 630 67 Hop . | . . . . Pick Up 37 | . 17 19 1 Fast Attach 17 | . 4 12 1 Attach 16 | . 1 13 2 Detach 1 | . . 1 . Swap 35 | 6 18 10 1 Drop 39 | . 16 21 2 Fire 146 | . 48 89 9 Melee . | . . . . Ram . | . . . . Kick . | . . . . Crush 12 | . 1 11 . Escape Stasis . | . . . . Rewire . | . . . . Trap . | . . . . Miscellaneous . | . . . . Route ------- -11/Scrapyard -10/Materials (discovered 4 exits: *Mat x3 / *Min) -9/Materials -9/Storage History --------- Turn | Location | Event 10 | -11/Scrapyard | Discovered new exit (range 0) 10 | -11/Scrapyard | Entered Materials 300 | -10/Materials | Build established: Mutant 359 | -10/Materials | Discovered new exit (range 10) 446 | -10/Materials | Discovered new exit (range 8) 670 | -10/Materials | Discovered new exit (range 16) 670 | -10/Materials | Identified exit to Mines 686 | -10/Materials | Discovered new exit (range 11) 1437 | -10/Materials | Entered another Materials area 1437 | -9/Materials | Evolved 2 slots: Utility x2 1442 | -9/Materials | Discovered new exit (range 12) 1897 | -9/Materials | Core integrity fell below 50% 1921 | -9/Materials | Lost 5 parts (1p1n3w) 2177 | -9/Materials | Build established: Scavenger-Mutant 2447 | -9/Materials | Core integrity fell below 20% 2969 | -9/Materials | Entered Storage 3191 | -9/Storage | Destroyed by G-34 Mercenary with Small Laser Last Messages --------------- 03127_ Acquired 40 matter. 03138_ U-05 Engineer builds a Door. 03142_ Connecting with Terminal... >>Schematic(Hvy. Missile Launcher) Downloading schematic... Hvy. Missile Launcher Rating: 4 Schematic downloaded. 03147_ R-06 Scavenger collects Sml. Laser. 03152_ System corrupted: Energy discharge (-90). 03152_ R-06 Scavenger collects Hammer. 03155_ R-06 Scavenger collects Rnf. Ion Engine. 03175_ System corrupted: Imp. Assault Rifle rejected. 03179_ G-34 Mercenary destroyed. 03183_ Acquired 22 matter. 03186_ Acquired 10 matter. 03189_ A-02 Transporter destroyed. 03189_ R-06 Scavenger destroyed. 03189_ K-01 Serf collects debris. 03190_ U-05 Engineer lays Concrete. Map ----- +----------------------------------------------------+ | ?????? ????????????????????????????? | | ?????# ????????????????????????????? | | ?????# ????????????????????????????? | | ?????# ????????????????????????????? | | ?????# ????????????????????????????? | | ?????# #????????????????????????????? | | ?????# #????????????????????????????? | | ?????# #????????????????????????????? | | ?????# #????????????????????????????? | | ?????# #????????????????????????????? | | ?#####/###??????????????????????????? | | ?# #??????????????????????????? | | ?# """ #??????????????????????????? | | ?# """ #??????????????????????????? | | ?# """ #??????????????????????????? | | ?# #??????????????????????????? | | ?# """"" #????###+######????????????? | | ?# """"" #????k #????????????? | | ?# """"" #???? #????????????? | | ?# #???? #????????????? | | ?# ! #??? #????????????? | | ?# #??? k #????????????? | | ?#####/###??? #????#######?? | | ???# ####* ######### ### | | ???# u !u[ =u | | ???# T =@/= g=g=u T | | ???# [=%! r =%gau o | | ???# ##### #####+#### ### | | ???## ## ##?? ?## ##?? | | ????# ## ##?""""" ?# #??? | | ????# ## // ##?????? ## #??? | | ????# ## // ##??????? ## +??? | | ????# ## // ##????????## #??? | | ????# ## ##?????????# #??? | | ????# ## ##?????????# #??? | | ????# ## ##?????????# #??? | | ????# ## ##?????????# #??? | | ????# ##### ######?????????# #??? | | ????# #######????#????????? ??? | | ????# ##! !#?????#????????? ??? | | ????# ##! !#?????#????????? ??? | | ????# ## =!#?????#????????? ?? | | ???## ##!! #?????#????????? ?? | | ???#T ### ##???????????????##### ?? | | ???## #/ T#???????????????????? ?? | | ????# %+* ##???????????????????? ?? | | ????# ######??????????????????????? | | ????# ######??????????????????????? | | ????#####???????????????????????????? | | ????????????????????????????????????? | +----------------------------------------------------+ Best States ------------- Heat Dissipation 42 Energy Generation 10 Energy Capacity 250 Matter Stores 300 Matter Capacity 450 Sight Range 16 Terrain Scan Range 14 Terrain Scan Density 10 ECM Strength 1 Additional Mass Support 6 Armor Coverage 150 Power Shielding 33 Utility Shielding 33 Evasion (%) 55 Recoil Reduction 2 Item Schematics ----------------- Flight Unit | -9/Materials | Scanalyzed Imp. Assault Rifle | -9/Materials | Scanalyzed Hvy. Missile Launcher | -9/Storage | Hacked Robot Schematics ------------------ None Fabricated ------------ Nothing Alien Tech Used ----------------- None Achievements -------------- GoHome() Challenges ------------ None Game ------ Seed CloakingRagnarokBattery Manual? 0 Play Time 00:44:24 Cumulative 52.6 hours Start 2022.04.25 @ 12:35:08 End 2022.04.25 @ 16:44:53 Sessions 3 Manual Loads 0 Difficulty Rogue Special Mode None Game No. 68 Rogue 68 Adventurer 0 Explorer 0 Win Type - Total 0 Types 0/0/0/0/0/0/0/0/0 Lore% 20 Gallery% 28 Achievement% 23 Wizard Run 0 Options --------- ASCII 0 Keyboard 0 Movement Numpad Keybinds 0 Fullscreen 2 Font 18/SmallcapsGlow Map View 76x50 Tactical HUD 1 Map Filters NONE Filters NONE Steam 1 RUN: 20a97cc9-857e-413d-8752-e062d6834b07